{"text_format":"1","workbook":"xlsx","n_sheets":2,"sheets":["Лист1","Лист3"],"not_rendered":{"charts":0,"images":0,"macros":0,"external_links":0,"defined_names":1,"comments":0,"pivot_tables":0},"unopened":[],"bounds":{"document_bytes":16777216,"sheet_cells":100000,"rows_first":2000,"rows_last":500,"rows_between":2000,"halvings":0,"cell_chars":16384,"cell_head_chars":4096},"cells_cut":0,"cells_raw":0,"read":"whole","date_system":"1900"}

{"sheet":"Лист1","index":0,"n_rows":268,"n_cols":5,"rows_kept":268,"cut":false,"hidden":false,"merged":[[3,2,3,3]]}
[]
[]
[]
[]
[null,null,"Периодические издания в фондах "]
[null,null," Научной библиотеки им.Н.И.Лобачевского и в открытом доступе"]
[null,null,"( 1 полугодие 2021 года)"]
[]
[]
[]
["№","Индекс","Наименование издания","Местонахождение","Сумма, руб,"]
[1,40865,"National Geographic Россия","ч/з 3",580]
[2,null,"PR в России","East View* "]
[3,null,"Автоматика и телемеханика","East View"]
[4,93553,"Авторефераты диссертаций. Гос.библиографический указатель","НБО"]
[5,36061,"Административное право","ч/з 3"]
[6,null,"Азия и Африка сегодня","East View (БД Наука Онлайн)****"]
[7,79299,"Актуальные проблемы Европы     ","ОДeLIBRARY**,КиберЛенинка***"]
[8,null,"Арбитражный и гражданский процесс","ч/з 3"]
[9,32123,"Аргументы и факты","ч/з 1"]
[10,null,"Аудит и финансовый анализ","ч/з 3"]
[11,"П2343","Безнен мирас","ч/з 11"]
[12,70052,"Биология в школе","ч/з 3"]
[13,70085,"Биотехнология","ч/з 3"]
[14,48987,"Бухгалтерский учет ","OДeLIBRARY"]
[15,85160,"Бюллетень Европейского Суда по правам чел","ч/з 3"]
[16,"П2449","Ватаным Татарстан","ч/з 11"]
[17,null,"Ведомости","East View"]
[18,15166,"Вестник государственного и муниципального управления","КиберЛенинка"]
[19,null,"Вестник древней истории",{"$f":"$D$17","v":"East View (БД Наука Онлайн)****"}]
[20,null,"Ведомости Государственного Совета РТ","ч/з 3"]
[21,91793,"Вестник Академии детско-юношеского туризма и краеведения","ОДeLIBRARY,КиберЛенинка"]
[22,null,"Вестник МГУ. Серия 2. Химия","КиберЛенинка"]
[23,34108,"Вестник МГУ. Серия 3. Физика. Астрономия","КиберЛенинка"]
[24,null,"Вестник МГУ. Серия 4. Геология","КиберЛенинка"]
[25,null,"Вестник МГУ. Серия 5. География","КиберЛенинка"]
[26,null,"Вестник МГУ. Серия 6. Экономика","КиберЛенинка"]
[27,null,"Вестник МГУ. Серия 7. Философия","КиберЛенинка"]
[28,null,"Вестник МГУ. Серия 8. История","КиберЛенинка"]
[29,39390,"Вестник МГУ. Серия 9. Филология","КиберЛенинка"]
[30,null,"Вестник МГУ. Серия 10. Журналистика","КиберЛенинка"]
[31,40721,"Вестник МГУ. Сер.1.Математика .Механика","КиберЛенинка"]
[32,40520,"Вестник МГУ. Серия 11. Право","КиберЛенинка"]
[33,null,"Вестник МГУ. Сер.12. Политические науки","КиберЛенинка"]
[34,null,"Вестник МГУ. Серия 13.  Востоковедение","КиберЛенинка"]
[35,null,"Вестник МГУ. Серия 14. Психология","КиберЛенинка"]
[36,null,"Вестник МГУ. Серия 15. Вычислительная математика и кибернетика","КиберЛенинка"]
[37,null,"Вестник МГУ. Серия 16. Биология","КиберЛенинка"]
[38,null,"Вестник МГУ. Серия 17. Почвоведение","КиберЛенинка"]
[39,null,"Вестник МГУ. Серия 18. Социология и политология","КиберЛенинка"]
[40,null,"Вестник МГУ. Серия 19. Лингвистика и межкультурные коммуника","КиберЛенинка"]
[41,null,"Вестник МГУ. Серия 20. Педагогическое образование","КиберЛенинка"]
[42,null,"Веситник МГУ. Серия 21. Управление (государство и право)","КиберЛенинка"]
[43,88134,"Вестник МГУ. Серия 22. Теория перевода","КиберЛенинка"]
[44,null,"Вестник МГУ. Серия 23. Антропология","КиберЛенинка"]
[45,88513,"Вестник МГУ. Серия 25. Международные отношения","КиберЛенинка"]
[46,90928,"Вестник МГУ. Сер. 27.Глобалистика и геополитика","КиберЛенинка"]
[47,null,"Вестник РУДН.Сер. Экология и безопасность жизнедеятельностиОДeLIBRARY,КиберЛенинка","ОДeLIBRARY,КиберЛенинка"]
[48,null,"Вестник С-Пб университета. Философия и конфликтология","East View"]
[49,20953,"Вестник спортивной науки","КиберЛенинка***"]
[50,null,"Вечерняя Казань","см.в элетрон.виде"]
[51,null,"Вокруг света","ч/з 10",637]
[52,null,"Вопросы истории","East View"]
[53,null,"Вопросы истории естествознания и техники",{"$f":"$D$30","v":"East View (БД Наука Онлайн)****"}]
[54,null,"Вопросы литературы","East View"]
[55,70131,"Вопросы психологии","ч/з 14",472]
[56,71807,"Вопросы статистики","ч/з 13"]
[57,null,"Вопросы философии","ч/з 3"]
[58,null,"Вопросы языкознания","East View (БД Наука Онлайн)****"]
[59,19368,"Вузовский вестник","ч/з 1"]
[60,null,"Восток. Афро-Азиатские общества: история и современность",{"$f":"$D$69","v":"East View (БД Наука Онлайн)****"}]
[61,57175,"Востоковедение и африканистика. РЖ. Зарубежная литература","КиберЛенинка"]
[62,"П2790","Гаилэ хэм мэктэп","ч/з 11"]
[63,null,"Геология и геофизика","ч/ 3"]
[64,null,"Геология нефти и газа","КиберЛенинка"]
[65,null,"Геофизика","ч\\з 3"]
[66,null,"Государство и право ",{"$f":"$D$71","v":"East View (БД Наука Онлайн)****"}]
[67,null,"Гражданское право","ч/з 3"]
[68,70255,"Дефектология","ч/з 14"]
[69,20236,"Дипломатическая служба","ч/ з 3"]
[70,38326,"Дифференциальные уравнения","ч\\з 3"]
[71,79455,"Дополнительное образование и воспитание","ч/з 14"]
[72,73106,"Дошкольное воспитание","ч/з 14"]
[73,93556,"Ежегодный библиограф.указатель книг России","НБО"]
[74,71157,"Журнал Московской патриархии","ч/з 10"]
[75,null,"Журнал прикладной спектроскопии","East View"]
[76,39001,"Закон","ч/з 3"]
[77,70871,"Законность","ч/з 3"]
[78,72043,"Законодательство ","ч/з 3"]
[79,"П7225","Звезда Поволжья","ОК НБЛ"]
[80,84791,"Землеустройство,кадастр и мониторинг земель","ч/з 3"]
[81,70332,"Знание-сила","ч/з 3",768]
[82,73951,"Идел(на тат.яз.)","ч/з 11",200]
[83,73952,"Идель","ч/з 3",400]
[84,13135,"Известия","ч/з 1"]
[85,null,"Известия вузов. Поволжский регион. Все серии","КиберЛенинка"]
[86,70373,"Известия вузов. Правоведение","КиберЛенинка"]
[87,70376,"Известия вузов. Радиофизика","ч/з 9"]
[88,null,"Известия общества археологии. Истории и этнографии Казанского университета","КиберЛенинка"]
[89,null,"Известия РАН. Серия литературы и языка",{"$f":"$D$77","v":"East View (БД Наука Онлайн)****"}]
[90,70355,"Известия РАН. Сер.математическая","ч/з 3"]
[91,null,"Инженерно-физический журнал","East View"]
[92,null,"Информационное право","ч/з 3"]
[93,94107,"Ислам в современном мире","ОДeLIBRARY"]
[94,79289,"Исторический архив","ч/з 3"]
[95,57180,"История . РЖ.Отеч.и зарубежная литература","КиберЛенинка"]
[96,null,"История государства и права","ч/з 3"]
[97,null,"История и историки",{"$f":"$D$64","v":"East View (БД Наука Онлайн)****"}]
[98,"П2368","Казан утлары","ч/з 11",1020]
[99,"П2447","Казанские ведомости","ч/з 3"]
[100,null,"Казанский вестник молодых ученых","КиберЛенинка"]
[101,null,"Казанский лингвистический журнал","КиберЛенинка"]
[102,null,"Казанский медицинский журнал","КиберЛенинка"]
[103,null,"Казанский педагогический журнал","КиберЛенинка"]
[104,73944,"Казань","ч/з 3",2226]
[105,87901,"Караван историй","ч/з 1",899]
[106,null,"Каротажник","ч/з 3"]
[107,null,"Клиническая фармакология и терапия","ОДeLIBRARY"]
[108,93542,"Книги России.Гос.библиограф.указатель РФ","НБО"]
[109,null,"Коммерсант","ч/з 3"]
[110,84756,"Комсомольская правда","ч/з 3"]
[111,null,"Конституционное и муниципальное право","ч/з 3"]
[112,null,"Коррекционная педагогика: теория и практика ","ОДeLIBRARY"]
[113,50126,"Культура","ч\\з 1"]
[114,null,"Латинская Америка",{"$f":"$D$108","v":"East View (БД Наука Онлайн)****"}]
[115,73227,"Литература в школе","ч/з 14"]
[116,50067,"Литературная газета","ч/з 14"]
[117,57178,"Литературоведение.РЖ","КиберЛенинка"]
[118,82686,"Логопед","ч/з 14"]
[119,47552,"Маркетинг и маркетинговые исследования","ч/з 13"]
[120,80857,"Математика в школе","ч/з 3",2036]
[121,null,"Математика и математическое моделирование","КиберЛенинка"]
[122,45962,"Математические труды","ч/з 3"]
[123,70512,"Математический сборник","ч/з 3"]
[124,null,"Математическое моделирование и численные методы","КиберЛенинка"]
[125,null,"Международное публичное и частное право","ч/з 3"]
[126,null,"Международный бухгалтерский учет","КиберЛенинка"]
[127,70525,"Метеорология и  гидрология","ч/з 3"]
[128,null,"Механика композиционных материалов и конструкций ","East View"]
[129,null,"Мировая экономика и международные отношения",{"$f":"$D$125","v":"East View (БД Наука Онлайн)****"}]
[130,70020,"Морфология","ч/з 3"]
[131,70893,"Московский журнал международного права","ч/з 3"]
[132,84794,"Музей","ч/з 3",2504]
[133,null,"Мусульманский мир","КиберЛенинка"]
[134,73363,"Мэгариф","ч/з 11",849]
[135,"П2355","Мэдэни жомга","ч/з 11"]
[136,null,"Налоговый вестник","East View"]
[137,70601,"Наука и жизнь","ч/з 3"]
[138,50089,"Независимая газета","ч/з 1"]
[139,null,"Нефтепромысловое дело","ч\\З 3"]
[140,32120,"Новая газета","ОК НБЛ"]
[141,null,"Новая и новейшая история","East View (БД Наука Онлайн)****"]
[142,70636,"Новый мир","ч/з 3",986]
[143,79370,"Образование в современной школе","ч/з 14"]
[144,null,"Общественные науки и современность",{"$f":"$D$140","v":"East View (БД Наука Онлайн)****"}]
[145,null,"Общество и экономика",{"$f":"$D$155","v":"East View (БД Наука Онлайн)****"}]
[146,80756,"Огонек","ч/З 3",1113]
[147,null,"Отечественная геология","КиберЛенинка"]
[148,70913,"Отечественные архивы","ч/з 3"]
[149,71020,"Педагогика","КиберЛенинка"]
[150,null,"Поволжская археология","КиберЛенинка"]
[151,29855,"Поиск","ч/з 1"]
[152,null,"ПОЛИС. Политические исследования","East View"]
[153,88873,"Политическая наука","КиберЛенинка"]
[154,80454,"Полития","OДeLIBRARY"]
[155,50102,"Правда","ОК НБЛ"]
[156,null,"Право. Журнал Высшей школы экономики","КиберЛенинка"]
[157,14869,"Право и жизнь в Татарстане/Хокук хэм мектаб","ч/з 3",480]
[158,null,"Правосудие в Татарстане","ч/з 3"]
[159,79546,"Преподавание истории и обществознания","ч/з 3",480]
[160,70295,"Прикладная механика и техническая физика","ч/з 3"]
[161,70746,"Приусадебное хозяйство","ч/з 3",648]
[162,null,"Проблемы Дальнего Востока",{"$f":"$D$156","v":"East View (БД Наука Онлайн)****"}]
[163,46340,"Проблемы экономика и юридической практики ","ч/з 3"]
[164,90995,"Пространство, время и фундаментальные взаимо","ч/з 3"]
[165,null,"Психологический журнал",{"$f":"$D$173","v":"East View (БД Наука Онлайн)****"}]
[166,null,"Психология. Журнал Высшей школы экономики","КиберЛенинка"]
[167,55773,"Психология,Раздел-том","НБО",6481]
[168,18060,"РБК ","ч/з 3"]
[169,43708,"Регион:экономика и социология","ч/з 13"]
[170,82327,"Региональная экономика:теория и практика","ОДeLIBRARY,КиберЛенинка"]
[171,null,"Регионология","КиберЛенинка"]
[172,47553,"Реклама. Теория и практика","ч/з 3"]
[173,"П2392","Республика Татарстан","ч/з 3"]
[174,70559,"РИСК:ресурсы, информация,снабжение,конкурен","ч/з 13"]
[175,null,"Российская археология",{"$f":"$D$176","v":"East View (БД Наука Онлайн)****"}]
[176,15898,"Российская газета","ч/з 3"]
[177,null,"Российская история",{"$f":"$D$186","v":"East View (БД Наука Онлайн)****"}]
[178,71801,"Российская юстиция","ч/з 3"]
[179,72745,"Российский адвокат","ч/з 3"]
[180,48630,"Российский следователь","ч/з 3"]
[181,79891,"Российский судья","ч/з 3"]
[182,46723,"Российский психологический журнал","КиберЛенинка"]
[183,70285,"Российский химический журнал","КиберЛенинка"]
[184,57195,"Россия и мусульманский мир","КиберЛенинка"]
[185,57194,"Россия и современный мир","КиберЛенинка"]
[186,null,"Русская речь",{"$f":"$D$188","v":"East View (БД Наука Онлайн)****"}]
[187,73334,"Русский язык в школе","ч/з 3"]
[188,"П2266","Сборник документов и правовых актов г.Казани","ч/з 3"]
[189,null,"Свободная мысль","ОДeLIBRARY"]
[190,null,"Семейное и жилищное право","ч/з 3"]
[191,70819,"Сибирский математический журнал","ч/з 3"]
[192,null,"Славяноведение",{"$f":"$D$214","v":"East View (БД Наука Онлайн)****"}]
[193,null,"Собрание законодательства Республики Татарстан","книгохранение"]
[194,50124,"Советская Россия","ОК НБЛ"]
[195,14492,"Современная Европа","КиберЛенинка"]
[196,null,"Современный мусульманский мир","КиберЛенинка"]
[197,null,"Социологические исследования","East View (БД Наука Онлайн)****"]
[198,57183,"Социология. РЖ. Отеч. И заруб. литература","КиберЛенинка"]
[199,93543,"Статьи из рос.журналов.Гос.библиограф.указатель","НБО"]
[200,93551,"Статьи из рос.газет.Гос.библиограф.указатель","НБО"]
[201,73390,"Стратиграфия. Геологическая корреляция","ОДeLIBRARY"]
[202,48993,"Страховое дело","ч/з 13"]
[203,null,"США-Канада: экономика, политика, культура",{"$f":"$D$197","v":"East View (БД Наука Онлайн)****"}]
[204,73002,"Сююмбике","ч/з 11"]
[205,66079,"Татарика  (КФУ)","ч/з 3"]
[206,"П2378","Татарстан","ч/з 3",252]
[207,"П2381","Татарстан ( на тат,яз,)","ч/з 11",252]
[208,54109,"Татарстан яшьляре                                                                     ","ч/з 11",704]
[209,null,"Твердые бытовые отходы","East View"]
[210,71472,"Терапевтический архив","кол.абонемент кафедры фармакологии"]
[211,null,"Трудовое право право в России и за рубежом","ч/з 3"]
[212,86119,"Труды Института государства и права РАН","ОДeLIBRARY,КиберЛенинка"]
[213,81999,"Труды института математики и механики УрО","ч/з 3"]
[214,18968,"Труды Математического института им. Стеклова","ч/з 3"]
[215,null,"Уголовно-исправительное право","КиберЛенинка"]
[216,45296,"Уголовное право","ч/з 3"]
[217,84639,"Уголовный процесс","ч/з 3"]
[218,72296,"Университетская книга","КиберЛенинка"]
[219,47543,"Управление современной школой","ч/3 14"]
[220,71002,"Успехи математических наук","ч/з 3"]
[221,71005,"Успехи химии","ч/з 5"]
[222,null,"Ученые записки КФУ. Сер. Гуманитарные науки","ч/з 3"]
[223,null,"Ученые записки КФУ. Сер. Естественные науки","ч/з 3,5"]
[224,null,"Ученые записки КФУ. Сер. Физико-математические науки","ч/з 3"]
[225,null,"Фармация","East View"]
[226,15078,"Физическое образование в ВУЗах","ч/з 9"]
[227,null,"Философия. Журнал высшей школы экономики","КиберЛенинка"]
[228,57182,"Философия. РЖ.Отеч.и заруб.литература","КиберЛенинка"]
[229,82326,"Философия образования","ч/з 3"]
[230,45490,"Философские науки","ч/з 3"]
[231,null,"Финансовое право","ч/з 3"]
[232,71027,"Финансы","ч/з 13"]
[233,null,"Финансы и кредит","КиберЛенинка"]
[234,46335,"Фома","ч/з 10",754]
[235,71481,"Химико-фармацевтический журнал","ч/з 3"]
[236,71066,"Хозяйство и право","ч/з 3",3712]
[237,null,"Цивилизация",{"$f":"$D$214","v":"East View (БД Наука Онлайн)****"}]
[238,null,"Человек",{"$f":"$D$248","v":"East View (БД Наука Онлайн)****"}]
[239,null,"Шахри Казан","ч/з 11"]
[240,47642,"Экологическое право","ч/з 3"]
[241,null,"ЭКО. Всеросийский экономический журнал","East View"]
[242,57181,"Экономика. РЖ.Отеч.и зарубежная литература","КиберЛенинка"]
[243,42191,"Экономика и жизнь","ч\\з 3"]
[244,null,"Экономика и математические методы",{"$f":"$D$248","v":"East View (БД Наука Онлайн)****"}]
[245,81287,"Экономический анализ:теория и практика","ч/з 13"]
[246,79264,"Экономический журнал высшей школы экономики","ОДeLIBRARY,КиберЛенинка"]
[247,null,"Экономический вестник Республики Татарстан","ч/з 3"]
[248,71485,"Экспериментальная и клиническая фармакология","Кол.аб.каф.фарм "]
[249,null,"Этнографическое обозрение","КиберЛенинка"]
[250,null,"Юридическое образование и наука","ч/3 3"]
[251,null,"Юрист","ч/з 3"]
[252,57179,"Языкознание. РЖ.Отеч.и зарубежная литература","КиберЛенинка"]
[]
[null,"*","см. открытый доступ(ОД) сетевого ресурса eLIBRARY"]
[null,"**","см. открытый доступ(ОД) сетевого ресурса East View ","доступ до 13.01.2021"]
[null,"***","открытый доступ научной электронной библиотеки КиберЛенинка"]
[null,"****","East View (БД Наука Онлайн) -  см. сетевой ресурс East View, база данных Наука Онлайн","доступ до 13.01.2021"]

{"sheet":"Лист3","index":1,"n_rows":0,"n_cols":0,"rows_kept":0,"cut":false,"hidden":false,"merged":[]}